fUST/lending_fUST_20240331
["ID","MTS","AMOUNT","RATE_DAILY","PERIOD"]
[321082512,1711887905043,-701.82,0.00041465,4]
[321082513,1711887905071,-500.0,0.00041465,4]
[321082514,1711887905099,-500.0,0.00041466,2]
[321082515,1711887905127,-202.0622477,0.00041616,2]
[321082516,1711887905155,-167.658928,0.00041737,2]
[321082517,1711887905182,-239.13922192,0.00041738,4]
[321082518,1711887905210,-630.92,0.00041738,4]
[321082519,1711887905235,-500.0,0.00041738,4]
[321082520,1711887905268,-18726.33497064,0.00041739,3]
[321082521,1711887905295,-500.0,0.00041739,4]
[321082522,1711887905320,-1249.86,0.00041739,4]
[321082523,1711887905348,-500.0,0.00041739,4]
[321082524,1711887905374,-1763.14,0.00041739,4]
[321082525,1711887905402,-500.0,0.00041739,4]
[321082526,1711887905429,-2420.6,0.00041739,4]
[321082527,1711887905456,-500.0,0.00041739,4]
[321082528,1711887905484,-701.82,0.00041739,4]
[321082529,1711887905513,-500.0,0.00041739,4]
[321082530,1711887905538,-500.0,0.0004174,2]
[321082531,1711887905563,-150.0,0.000419,2]
[321082532,1711887905589,-200.0,0.0004194,120]
[321082533,1711887905615,-630.92,0.00042012,4]
[321082534,1711887905642,-500.0,0.00042012,4]
[321082535,1711887905668,-500.0,0.00042013,4]
[321082536,1711887905693,-1249.86,0.00042013,4]
[321082537,1711887905720,-500.0,0.00042013,4]
[321082538,1711887905751,-1763.14,0.00042013,4]
[321082539,1711887905778,-500.0,0.00042013,4]
[321082540,1711887905805,-2420.6,0.00042013,4]
[321082541,1711887905835,-500.0,0.00042013,4]
[321082542,1711887905863,-701.82,0.00042013,4]
[321082543,1711887905890,-451.21595891,0.00042013,4]
[321082544,1711887905916,-500.0,0.00042014,2]
[321082545,1711887905941,-166.666666,0.00042058,2]
[321082546,1711887905970,-630.92,0.00042286,4]
[321082547,1711887905996,-462.47033851,0.00042286,4]
[321082548,1711887906026,-500.0,0.00042287,4]
[321082549,1711887906052,-1249.86,0.00042287,4]
[321082550,1711887906079,-500.0,0.00042287,4]
[321082551,1711887906107,-1763.14,0.00042287,4]
[321082552,1711887906135,-500.0,0.00042287,4]
[321082553,1711887906277,-2420.6,0.00042287,4]
[321082554,1711887906305,-500.0,0.00042287,4]
[321082555,1711887906332,-701.82,0.00042287,4]
[321082556,1711887906358,-500.0,0.00042288,2]
[321082557,1711887906383,-307.4991982,0.00042301,2]
[321082558,1711887906409,-157.14285715,0.00042504,30]
[321082559,1711887906436,-153.2224538,0.00042548,2]
[321082560,1711887906462,-153.0,0.00042548,2]
[321082561,1711887906490,-630.92,0.0004256,4]
[321082562,1711887906532,-500.0,0.00042561,4]
[321082563,1711887906565,-1249.86,0.00042561,4]
[321082564,1711887906593,-500.0,0.00042561,4]
[321082565,1711887906620,-1763.14,0.00042561,4]
[321082566,1711887906645,-500.0,0.00042561,4]
[321082567,1711887906671,-2420.6,0.00042561,4]
[321082568,1711887906699,-500.0,0.00042561,4]
[321082569,1711887906727,-701.82,0.00042561,4]
[321082570,1711887906755,-500.0,0.00042562,2]
[321082571,1711887906781,-630.92,0.00042834,4]
[321082572,1711887906807,-500.6230204,0.00042835,4]
[321082573,1711887906835,-1249.86,0.00042835,4]
[321082574,1711887906861,-500.0,0.00042835,4]
[321082575,1711887906887,-1763.14,0.00042835,4]
[321082576,1711887906913,-500.0,0.00042835,4]
[321082577,1711887906939,-2420.6,0.00042835,4]
[321082578,1711887906964,-500.0,0.00042835,4]
[321082579,1711887906989,-701.82,0.00042835,4]
[321082580,1711887907015,-500.0,0.00042836,2]
[321082581,1711887907040,-5000.0,0.00042958,2]
[321082582,1711887907065,-150.96371262,0.0004298,30]
[321082583,1711887907090,-166.666666,0.00043019,2]
[321082584,1711887907115,-200.0,0.0004305,120]
[321082585,1711887907140,-630.92,0.00043108,4]
[321082586,1711887907165,-1249.86,0.00043109,4]
[321082587,1711887907191,-1763.14,0.00043109,4]
[321082588,1711887907216,-500.0,0.00043109,4]
[321082589,1711887907241,-2420.6,0.00043109,4]
[321082590,1711887907267,-500.0,0.00043109,4]
[321082591,1711887907293,-701.82,0.00043109,4]
[321082592,1711887907318,-307.13785542,0.0004311,2]
[321082593,1711887907349,-306.0,0.0004326,2]
[321082594,1711887907380,-202.21811,0.0004326,2]
[321082595,1711887907410,-202.21811,0.0004326,2]
[321082596,1711887907437,-202.21811,0.0004326,2]
[321082597,1711887907468,-202.21811,0.0004326,2]
[321082598,1711887907497,-202.21811,0.0004326,2]
[321082599,1711887907527,-202.21811,0.0004326,2]
[321082600,1711887907556,-202.21811,0.0004326,2]
[321082601,1711887907586,-202.21811,0.0004326,2]
[321082602,1711887907612,-202.21811,0.0004326,2]
[321082603,1711887907642,-202.21811,0.0004326,2]
[321082604,1711887907671,-202.21811,0.0004326,2]
[321082605,1711887907700,-150.96371262,0.00043274,30]
[321082606,1711887907729,-630.92,0.00043382,4]
[321082607,1711887907761,-1249.86,0.00043383,4]
[321082608,1711887907790,-1763.14,0.00043383,4]
[321082609,1711887907817,-500.0,0.00043383,4]
[321082610,1711887907849,-2420.6,0.00043383,4]
[321082611,1711887907877,-500.0,0.00043383,4]
[321082612,1711887907908,-701.82,0.00043383,4]
[321082613,1711887907937,-200.0,0.00043466,120]
[321082614,1711887907966,-630.92,0.00043656,4]
[321082615,1711887907994,-1249.86,0.00043657,4]
[321082616,1711887908026,-1763.14,0.00043657,4]
[321082617,1711887908058,-500.0,0.00043657,4]
[321082618,1711887908090,-2420.6,0.00043657,4]
[321082619,1711887908123,-500.0,0.00043657,4]
[321082620,1711887908155,-701.82,0.00043657,4]
[321082621,1711887908184,-150.96371262,0.0004372,30]
[321082622,1711887908212,-5000.0,0.00043737,2]
[321082623,1711887908242,-371.7,0.000439,4]
[321082624,1711887908272,-630.92,0.0004393,4]
[321082625,1711887908302,-1249.86,0.00043931,4]
[321082626,1711887908333,-1763.14,0.00043931,4]
[321082627,1711887908360,-500.0,0.00043931,4]
[321082628,1711887908388,-2420.6,0.00043931,4]
[321082629,1711887908416,-500.0,0.00043931,4]
[321082630,1711887908445,-701.82,0.00043931,4]
[321082631,1711887908473,-166.666666,0.00043981,2]
[321082632,1711887908648,-154.98450155,0.00043984,4]
[321082633,1711887908677,-155.11441755,0.00043984,4]
[321082634,1711887908704,-3181.03700563,0.00044,120]
[321082635,1711887908734,-273.27366894,0.00044,2]
[321082636,1711887908762,-500.0,0.00044,120]
[321082637,1711887908789,-500.0,0.00044,120]
[321082638,1711887908817,-500.0,0.00044,120]
[321082639,1711887908846,-500.0,0.00044,120]
[321082640,1711887908873,-374.13,0.00044,120]
[321082641,1711887908904,-200.0,0.00044052,120]
[321082642,1711887908933,-157.29811272,0.0004407,30]
[321082643,1711887908964,-200.0,0.00044071,120]
[321082644,1711887908994,-202.21811,0.00044082,2]
[321082645,1711887909022,-202.21811,0.00044082,2]
[321082646,1711887909050,-202.21811,0.00044082,2]
[321082647,1711887909078,-202.21811,0.00044082,2]
[321082648,1711887909106,-202.21811,0.00044082,2]
[321082649,1711887909135,-199.5684509,0.00044082,2]
[321082650,1711887909163,-630.92,0.00044204,4]
[321082651,1711887909192,-1249.86,0.00044205,4]
[321082652,1711887909221,-1763.14,0.00044205,4]
[321082653,1711887909248,-500.0,0.00044205,4]
[321082654,1711887909280,-2420.6,0.00044205,4]
[321082655,1711887909309,-500.0,0.00044205,4]
[321082656,1711887909339,-701.82,0.00044205,4]
[321082657,1711887909368,-200.0,0.00044281,120]
[321082658,1711887909398,-630.92,0.00044478,4]
[321082659,1711887909426,-1249.86,0.00044479,4]
[321082660,1711887909454,-1763.14,0.00044479,4]
[321082661,1711887909481,-500.0,0.00044479,4]
[321082662,1711887909508,-2420.6,0.00044479,4]
[321082663,1711887909537,-500.0,0.00044479,4]
[321082664,1711887909565,-701.82,0.00044479,4]
[321082665,1711887909592,-200.0,0.0004465,120]
[321082666,1711887909619,-200.0,0.00044654,120]
[321082667,1711887909647,-630.92,0.00044752,4]
[321082668,1711887909674,-1249.86,0.00044753,4]
[321082669,1711887909702,-1763.14,0.00044753,4]
[321082670,1711887909731,-500.0,0.00044753,4]
[321082671,1711887909761,-2420.6,0.00044753,4]
[321082672,1711887909790,-500.0,0.00044753,4]
[321082673,1711887909821,-701.82,0.00044753,4]
[321082674,1711887909850,-736.96340657,0.000449,120]
[321082675,1711887909879,-2634.37732519,0.000449,2]
[321082676,1711887909905,-166.666666,0.00044942,2]
[321082677,1711887909931,-24943.58218207,0.00044996,4]
[321082678,1711887909960,-1000.0,0.00044999,120]
[321082679,1711887909986,-325928.67077788,0.00045,30]
[321082680,1711887910013,-4158.86303533,0.00045,15]
[321082681,1711887910038,-5652.41851083,0.00045,120]
[321082682,1711887910063,-1755.04657631,0.00045,7]
[321082683,1711887910088,-14021.17114722,0.00045,3]
[321082684,1711887910114,-630.92,0.00045026,4]
[321082685,1711887910139,-1249.86,0.00045027,4]
[321082686,1711887910166,-1763.14,0.00045027,4]
[321082687,1711887910192,-500.0,0.00045027,4]
[321082688,1711887910219,-2420.6,0.00045027,4]
[321082689,1711887910246,-500.0,0.00045027,4]
[321082690,1711887910275,-701.82,0.00045027,4]
[321082691,1711887910301,-200.0,0.00045145,120]
[321082692,1711887910327,-630.92,0.000453,4]
[321082693,1711887910354,-1249.86,0.00045301,4]
[321082694,1711887910384,-1763.14,0.00045301,4]
[321082695,1711887910413,-500.0,0.00045301,4]
[321082696,1711887910440,-2420.6,0.00045301,4]
[321082697,1711887910468,-500.0,0.00045301,4]
[321082698,1711887910497,-701.82,0.00045301,4]
[321082699,1711887910525,-160.838919,0.00045388,2]
[321082700,1711887910556,-630.92,0.00045574,4]
[321082701,1711887910584,-1249.86,0.00045575,4]
[321082702,1711887910611,-1763.14,0.00045575,4]
[321082703,1711887910639,-500.0,0.00045575,4]
[321082704,1711887910670,-2420.6,0.00045575,4]
[321082705,1711887910697,-530.89153994,0.00045575,4]
[321082706,1711887910724,-701.82,0.00045575,4]
[321082707,1711887910756,-200.0,0.00045618,120]
[321082708,1711887910785,-200.0,0.00045706,120]
[321082709,1711887910814,-630.92,0.00045848,4]
[321082710,1711887910842,-1249.86,0.00045849,4]
[321082711,1711887910953,-1763.14,0.00045849,4]
[321082712,1711887910979,-500.0,0.00045849,4]
[321082713,1711887911007,-2420.6,0.00045849,4]
[321082714,1711887911034,-701.82,0.00045849,4]
[321082715,1711887911060,-150.96371262,0.0004585,30]
[321082716,1711887911086,-166.666666,0.00045904,2]
[321082717,1711887911114,-150.8642222,0.00045918,2]
[321082718,1711887911140,-200.0,0.00045987,2]
[321082719,1711887911166,-275.12463271,0.00046,2]
[321082720,1711887911192,-200.0,0.00046055,120]
[321082721,1711887911219,-150.96371262,0.00046111,30]
[321082722,1711887911246,-630.92,0.00046122,4]
[321082723,1711887911273,-1249.86,0.00046123,4]
[321082724,1711887911299,-1763.14,0.00046123,4]
[321082725,1711887911326,-311.84193593,0.00046123,4]
[321082726,1711887911353,-2420.6,0.00046123,4]
[321082727,1711887911379,-701.82,0.00046123,4]
[321082728,1711887911405,-200.0,0.0004621,120]
[321082729,1711887911431,-2563.34,0.00046275,6]
[321082730,1711887911459,-200.0,0.00046371,120]
[321082731,1711887911487,-630.92,0.00046396,4]
[321082732,1711887911515,-1249.86,0.00046397,4]
[321082733,1711887911542,-1763.14,0.00046397,4]
[321082734,1711887911570,-2420.6,0.00046397,4]
[321082735,1711887911599,-701.82,0.00046397,4]
[321082736,1711887911626,-150.96371262,0.00046443,30]
[321082737,1711887911654,-630.700518,0.00046575,2]
[321082738,1711887911682,-155.75903468,0.00046592,30]
[321082739,1711887911711,-631.05740068,0.0004667,4]
[321082740,1711887911744,-1249.88750046,0.00046671,4]
[321082741,1711887911775,-1763.28088363,0.00046671,4]
[321082742,1711887911803,-2420.77216754,0.00046671,4]
[321082743,1711887911832,-701.91152545,0.00046671,4]
[321082744,1711887911862,-301.7284444,0.00046689,4]
[321082745,1711887911889,-200.0,0.00046703,120]
[321082746,1711887911916,-150.96371262,0.00046899,30]
[321082747,1711887911942,-199.0,0.00047,90]
[321082748,1711887911970,-200.0,0.00047041,120]
[321082749,1711887911995,-157.14285715,0.00047188,30]
[321082750,1711887912021,-150.96371262,0.00047229,30]
[321082751,1711887912047,-603.4568888,0.00047474,7]
[321082752,1711887912072,-157.14285715,0.00048304,30]
[321082753,1711887912098,-1206.9137776,0.00048676,30]
[321082754,1711887912123,-150.96371262,0.00048763,30]
[321082755,1711887912149,-47607.04909423,0.00049,30]
[321082756,1711887912174,-5040.5918143,0.00049,120]
[321082757,1711887912198,-1563.2557911,0.00049,2]
[321082758,1711887912222,-214787.51039067,0.00049,120]
[321082759,1711887912248,-2596.133671,0.00049,68]
[321082760,1711887912273,-59998.799999,0.000491,120]
[321082761,1711887912299,-150.96371262,0.00049112,30]
[321082762,1711887912324,-1235.35103042,0.00049498,36]
[321082763,1711887912349,-935.72644077,0.000498,115]
[321082764,1711887912373,-926.96542059,0.000498,120]
[321082765,1711887912398,-1000.0,0.000498,120]
[321082766,1711887912422,-10000.0,0.000498,120]
[321082767,1711887912447,-3000.0,0.000498,120]
[321082768,1711887912472,-3000.0,0.000498,120]
[321082769,1711887912497,-2664.40345728,0.000498,120]
[321082770,1711887912523,-150.96371262,0.00049826,30]
[321082771,1711887912549,-35065.55,0.0004987,120]
[321082772,1711887912574,-150.96371262,0.00049955,30]
[321082773,1711887912599,-200.0,0.00049987,2]
[321082774,1711887912624,-500.0,0.0005,14]
[321082775,1711887912649,-3587.70331799,0.0005,2]
[321082776,1711887912674,-8493.65071198,0.0005,120]
[321082777,1711887912699,-13475.43939449,0.0005,120]
[321082778,1711887912723,-1500.0,0.0005,30]
[321082779,1711887912753,-1694.68,0.0005,30]
[321082780,1711887912779,-1500.0,0.0005,30]
[321082781,1711887912804,-1000.0,0.0005,30]
[321082782,1711887912833,-1500.0,0.0005,30]
[321082783,1711887912862,-24000.0,0.0005,2]
[321082784,1711887912889,-2046.855329,0.0005,120]
[321082785,1711887912919,-352.55571064,0.0005,3]
[321082786,1711887912946,-360.56118392,0.0005,4]
[321082787,1711887913055,-200.0,0.0005,120]
[321082788,1711887913084,-266363.48013245,0.0005,120]
[321082789,1711887913110,-879.77702063,0.0005,120]
[321082790,1711887913201,151.0,0.00040369,2]
[321082791,1711887913233,151.0,0.00040369,2]
[321082792,1711887913279,151.0,0.00040369,2]
[321082793,1711887913308,151.0,0.0004037,2]
[321082794,1711887913338,151.0,0.0004037,2]
[321082795,1711887913367,151.0,0.0004037,2]
[321082796,1711887913399,151.0,0.0004037,2]
[321082797,1711887913449,174.503838,0.0004037,2]
[321082798,1711887913486,176.544903,0.0004,2]
[321082799,1711888030876,9728.45879868,0.0004037,120]
[321082800,1711888048154,-260.0,0.00040369,5]
[321082801,1711888048174,-315.350259,0.00046575,2]
[321082802,1711888048194,-150.96371262,0.00047379,30]
[321082803,1711888048213,-220.00242286,0.000506,120]
[321082804,1711888048234,-160.838919,0.00050776,2]
[321082805,1711888048255,-156.13594851,0.00050955,4]
[321082806,1711888048274,-200.0,0.00050987,2]
[321082807,1711888048294,-162.53888198,0.00050995,4]
[321082808,1711888048314,-155.62559264,0.00050995,4]
[321082809,1711888048334,-155.24304395,0.00050996,4]
[321082810,1711888048356,-155.17555361,0.00050996,4]
[321082811,1711888048595,-2642.77077571,0.00051,60]
[321082812,1711888048618,-1012.1978868,0.00051,60]
[321082813,1711888053115,-4081.61892402,0.00051,60]
[321082814,1711888069453,-394.17019148,0.00040369,4]
[321082828,1711888163386,-500.0,0.00040368,4]
[321082829,1711888163414,-500.0,0.00040642,4]
[321082830,1711888163441,-500.0,0.00040916,4]
[321082831,1711888163469,-500.0,0.0004119,4]
[321082832,1711888163495,-500.0,0.00041464,4]
[321082833,1711888163522,-500.0,0.00041738,4]
[321082834,1711888163548,-500.0,0.00042012,4]
[321082835,1711888163574,-500.0,0.00042286,4]
[321082836,1711888163599,-500.0,0.0004256,4]
[321082837,1711888163626,-500.0,0.00042834,4]
[321082838,1711888163652,-500.0,0.00043108,4]
[321082839,1711888163677,-500.0,0.00043382,4]
[321082840,1711888163704,-500.0,0.00043656,4]
[321082841,1711888163730,-500.0,0.0004393,4]
[321082842,1711888163756,-500.0,0.00044204,4]
[321082843,1711888163782,-500.0,0.00044478,4]
[321082844,1711888163813,-500.0,0.00044752,4]
[321082845,1711888163840,-500.0,0.00045026,4]
[321082846,1711888163866,-500.0,0.000453,4]
[321082847,1711888163892,-500.0,0.00045574,4]
[321082848,1711888163918,-500.0,0.00045848,4]
[321082849,1711888163944,-320.53883736,0.00046122,4]
[321082850,1711888163971,-4906.18318918,0.00051,60]
[321082851,1711888163996,-15716.3679022,0.00051,60]
[321082852,1711888164021,-795.75721644,0.00051,60]
[321082853,1711888164051,197.75445823,0.000479,2]
[321083000,1711888233070,-7138.99205771,0.00040527,2]
[321083002,1711888233079,-4266.47060937,0.00040527,2]
[321083004,1711888233089,-5921.33431972,0.00040527,2]
[321083006,1711888233098,-19910.32396004,0.00040527,2]
[321083008,1711888233107,-4291.68492269,0.00040527,2]
[321083010,1711888233116,-7883.30649883,0.00040527,2]
[321083012,1711888233126,-1321.0,0.00051,60]
[321083014,1711888233135,-12858.0,0.00051,60]
[321083016,1711888233144,-62156.56128753,0.00051,2]
[321083018,1711888233154,-11885.29094754,0.000516,120]
[321083020,1711888233163,-1000.0,0.000519,2]
[321083022,1711888233172,-200.0,0.00051987,2]
[321083024,1711888233181,-156.25750455,0.00051997,4]
[321083026,1711888233190,-155.28327893,0.00051997,4]
[321083028,1711888233199,-1321.0,0.00052,60]
[321083030,1711888233208,-12857.0,0.00052,60]
[321083032,1711888233218,-794.0,0.00052,60]
[321083034,1711888233227,-197.75445823,0.000529,2]
[321083036,1711888233237,-36758.10515757,0.0005293,120]
[321083038,1711888233246,-200.0,0.00052987,2]
[321083040,1711888233255,-153.0,0.00053068,2]
[321083042,1711888233265,-153.0,0.00053068,2]
[321083044,1711888233274,-153.0,0.00053068,2]
[321083046,1711888233283,-153.0,0.00053068,2]
[321083048,1711888233292,-1323.5406184,0.0005346,77]
[321083050,1711888233302,-200.0,0.00053987,2]
[321083052,1711888233311,-160.0,0.00053999,3]
[321083054,1711888233320,-161.32307371,0.00053999,5]
[321083056,1711888233329,-959.36778359,0.00054,120]
[321083058,1711888233338,-1477.28767568,0.00054,120]
[321083060,1711888233347,-14044.75122798,0.00054794,61]
[321083062,1711888233357,-1882.52518888,0.00054794,120]
[321083064,1711888233368,-500.0,0.00054794,120]
[321083066,1711888233378,-500.0,0.00054794,120]
[321083068,1711888233387,-500.0,0.00054794,120]
[321083071,1711888233397,-500.0,0.00054794,120]
[321083072,1711888233406,-500.0,0.00054794,120]
[321083074,1711888233415,-500.0,0.00054794,120]
[321083077,1711888233425,-500.0,0.00054794,120]
[321083079,1711888233434,-500.0,0.00054794,120]
[321083081,1711888233443,-500.0,0.00054794,120]
[321083082,1711888233453,-500.0,0.00054794,120]
[321083085,1711888233463,-500.0,0.00054794,120]
[321083087,1711888233473,-500.0,0.00054794,120]
[321083089,1711888233482,-500.0,0.00054794,120]
[321083091,1711888233491,-500.0,0.00054794,120]
[321083092,1711888233500,-500.0,0.00054794,120]
[321083094,1711888233509,-500.0,0.00054794,120]
[321083096,1711888233519,-500.0,0.00054794,120]
[321083098,1711888233528,-500.0,0.00054794,120]
[321083101,1711888233538,-500.0,0.00054794,120]
[321083102,1711888233547,-500.0,0.00054794,120]
[321083104,1711888233557,-500.0,0.00054794,120]
[321083106,1711888233566,-199.43407344,0.00054794,120]
[321083108,1711888233575,-500.0,0.00054794,120]
[321083111,1711888233585,-500.0,0.00054794,120]
[321083112,1711888233594,-500.0,0.00054794,120]
[321083114,1711888233604,-500.0,0.00054794,120]
[321083116,1711888233612,-500.0,0.00054794,120]
[321083118,1711888233622,-500.0,0.00054794,120]
[321083120,1711888233630,-527.76365985,0.00054794,120]
[321083122,1711888233639,-500.0,0.00054794,4]
[321083124,1711888233648,-500.0,0.00054794,4]
[321083126,1711888233657,-500.0,0.00054794,4]
[321083128,1711888233665,-500.0,0.00054794,4]
[321083130,1711888233674,-500.0,0.00054794,4]
[321083132,1711888233683,-500.0,0.00054794,4]
[321083134,1711888233692,-500.0,0.00054794,4]
[321083136,1711888233701,-500.0,0.00054794,4]
[321083138,1711888233711,-500.0,0.00054794,4]
[321083140,1711888233720,-500.0,0.00054794,4]
[321083142,1711888233729,-500.0,0.00054794,4]
[321083144,1711888233738,-500.0,0.00054794,4]
[321083146,1711888233746,-522.28210968,0.00054794,4]
[321083148,1711888233755,-189.2972189,0.00054794,120]
[321083150,1711888233764,-250.0,0.00054794,4]
[321083152,1711888233773,-250.0,0.00054794,4]
[321083154,1711888233783,-250.0,0.00054794,4]
[321083156,1711888233792,-250.0,0.00054794,4]
[321083158,1711888233800,-500.0,0.00054794,120]
[321083160,1711888233811,-380.01160394,0.00054794,4]
[321083162,1711888233821,-500.0,0.00054794,120]
[321083164,1711888233830,-500.0,0.00054794,120]
[321083166,1711888233839,-500.0,0.00054794,120]
[321083168,1711888233847,-500.0,0.00054794,120]
[321083170,1711888233857,-500.0,0.00054794,120]
[321083172,1711888233866,-500.0,0.00054794,120]
[321083174,1711888233875,-500.0,0.00054794,120]
[321083176,1711888233886,-500.0,0.00054794,120]
[321083178,1711888233895,-500.0,0.00054794,120]
[321083180,1711888233903,-500.0,0.00054794,120]
[321083182,1711888233912,-500.0,0.00054794,120]
[321083184,1711888233922,-500.0,0.00054794,120]
[321083186,1711888233931,-500.0,0.00054794,120]
[321083188,1711888233940,-500.0,0.00054794,120]
[321083190,1711888233948,-500.0,0.00054794,120]
[321083192,1711888233957,-500.0,0.00054794,120]
[321083194,1711888233966,-500.0,0.00054794,120]
[321083195,1711888233975,-500.0,0.00054794,120]
[321083197,1711888233984,-599.45394922,0.00054794,120]
[321083199,1711888233993,-2650.0,0.00054794,120]
[321083202,1711888234003,-2650.0,0.00054794,120]
[321083204,1711888234012,-2650.0,0.00054794,120]
[321083206,1711888234021,-2650.0,0.00054794,120]
[321083208,1711888234032,-2650.0,0.00054794,120]
[321083209,1711888234041,-2650.0,0.00054794,120]
[321083211,1711888234049,-2650.0,0.00054794,120]
[321083213,1711888234058,-2650.0,0.00054794,120]
[321083215,1711888234068,-2650.0,0.00054794,120]
[321083217,1711888234077,-2650.0,0.00054794,120]
[321083219,1711888234086,-2650.0,0.00054794,120]
[321083221,1711888234095,-2650.0,0.00054794,120]
[321083223,1711888234104,-2386.6744701,0.00054794,120]
[321083225,1711888234113,-200.0,0.00054987,2]
[321083227,1711888234122,-10004.13870357,0.00055,2]
[321083229,1711888234132,-277.0,0.00055068,2]
[321083231,1711888234141,-277.0,0.00055753,35]
[321083233,1711888234150,-200.0,0.00055987,2]
[321083235,1711888234159,-160.838919,0.00056164,2]
[321083237,1711888234168,-277.0,0.00056438,40]
[321083239,1711888234177,-200.0,0.00056987,2]
[321083241,1711888234186,-277.0,0.00057123,45]
[321083243,1711888234194,-266.9118325,0.00057616,2]
[321083245,1711888234203,-277.0,0.00057808,50]
[321083247,1711888234212,-292.61,0.0005787,120]
[321083249,1711888234221,-608.314384,0.00057885,30]
[321083251,1711888234230,-200.0,0.00057987,2]
[321083253,1711888234239,-1000.0,0.00058,120]
[321083255,1711888234248,-1348.0,0.00058,120]
[321083257,1711888234257,-15419.26123833,0.00058,30]
[321083259,1711888234267,-166.55546454,0.000582,2]
[321083261,1711888234276,-277.0,0.00058493,55]
[321083263,1711888234286,-200.0,0.00058987,3]
[321083265,1711888234295,-277.0,0.00059178,60]
[321083267,1711888234304,-277.0,0.00059863,65]
[321083269,1711888234313,-23969.02839234,0.0005987,120]
[321083271,1711888234322,-10000.0,0.000599,120]
[321083273,1711888234331,-203.26427984,0.00059998,4]
[321083275,1711888234340,-200.0,0.00059998,4]
[321083277,1711888234349,-500.0,0.0006,120]
[321083280,1711888234358,-1190.53671672,0.0006,7]
[321083281,1711888234367,-2684.99119854,0.0006,120]
[321083283,1711888234377,-2733.89195937,0.0006,120]
[321083285,1711888234385,-1975.024994,0.0006,30]
[321083287,1711888234394,-305.125963,0.0006,120]
[321083289,1711888234403,-277.0,0.00060547,70]
[321083291,1711888234413,-150.8642222,0.00060945,2]
[321083293,1711888234422,-150.0,0.00061,120]
[321083295,1711888234430,-277.0,0.00061232,75]
[321083297,1711888234439,-190.23581395,0.0006124,120]
[321083299,1711888234448,-160.838919,0.00061553,2]
[321083301,1711888234457,-277.0,0.00061917,80]
[321083303,1711888234466,-301.7284444,0.00061969,4]
[321083305,1711888234475,-277.0,0.00062602,85]
[321083307,1711888234484,-603.4568888,0.0006301,7]
[321083309,1711888234493,-277.0,0.00063287,90]
[321083311,1711888234502,-5132.83759138,0.000638,5]
[321083313,1711888234511,-379.2539121,0.00063972,95]
[321083315,1711888234522,-176.50964468,0.0006441,12]
[321083317,1711888234532,-77000.0,0.0006458,120]
[321083319,1711888234541,-2121.0,0.00065,120]
[321083321,1711888234551,-10391.10903382,0.00065,30]
[321083323,1711888234561,-10000.0,0.00065753,10]
[321083325,1711888234571,-266.01989213,0.00066,120]
[321083327,1711888234580,-160.838919,0.00066941,2]
[321083329,1711888234590,-622.74117861,0.00068493,120]
[321083331,1711888234599,-500.0,0.00068493,7]
[321083333,1711888234609,-500.0,0.00068493,7]
[321083335,1711888234621,-347.05884169,0.00068493,7]
[321083345,1711888234707,-258.75051483,0.00069,7]
[321083347,1711888234717,-50025.59206357,0.000698,120]